bitfinex/quotes_ETHUSD_20241217
["timestamp","ask_amount","ask_price","bid_price","bid_amount"]
[1734468834629,0.7583,3942.7,3942.0,0.10310263]
[1734468834960,0.7583,3942.7,3942.1,0.10310263]
[1734468835255,0.7583,3942.7,3942.2,0.10310263]
[1734468835436,0.7583,3942.7,3942.3,0.10310263]
[1734468835607,0.7583,3942.7,3941.8,0.50737]
[1734468835608,0.7583,3942.7,3942.4,0.10310263]
[1734468835808,0.7583,3942.7,3941.8,1.56405086]
[1734468836009,0.7583,3942.7,3941.9,2.68577184]
[1734468836314,0.7583,3942.7,3942.0,0.10304849]
[1734468836551,0.7583,3942.7,3942.1,0.10304849]
[1734468836754,0.7583,3942.7,3942.2,0.10304849]
[1734468836917,0.7583,3942.7,3942.3,0.10304849]
[1734468837232,0.7583,3942.7,3941.7,1.05668086]
[1734468837449,0.7583,3942.7,3941.8,3.82812906]
[1734468837647,0.7583,3942.7,3941.9,0.97470321]
[1734468837815,0.7583,3942.7,3941.8,0.48923873]
[1734468837816,0.7583,3942.7,3942.0,0.10303237]
[1734468838008,0.7583,3942.7,3942.1,0.10303237]
[1734468838213,0.7583,3942.7,3942.2,0.10303237]
[1734468838430,3.29464,3942.7,3942.3,0.10303237]
[1734468838647,3.29464,3942.7,3941.8,0.48923873]
[1734468838815,3.29464,3942.7,3941.9,2.48750094]
[1734468839016,3.29464,3942.7,3942.0,0.97467823]
[1734468839350,0.88820588,3942.5,3942.1,0.10301773]
[1734468839547,0.88820588,3942.5,3941.6,1.05668086]
[1734468839729,0.88820588,3942.5,3941.7,2.28242215]
[1734468840058,0.88820588,3942.5,3941.8,0.97477154]
[1734468840259,0.88820588,3942.5,3941.9,0.10300447]
[1734468840554,0.88820588,3942.5,3941.6,1.05668086]
[1734468840555,0.88820588,3942.5,3942.0,0.10300447]
[1734468840860,2.53652,3942.4,3942.1,0.10300768]
[1734468841013,2.53652,3942.4,3941.6,1.05668086]
[1734468841373,2.53652,3942.4,3941.7,2.77694473]
[1734468841577,2.53652,3942.4,3941.8,2.28341608]
[1734468841771,2.53652,3942.4,3941.9,0.10304405]
[1734468841977,2.53652,3942.4,3942.0,0.10304405]
[1734468842127,2.53652,3942.4,3942.1,0.10304405]
[1734468842327,2.53652,3942.4,3941.6,1.05668086]
[1734468842527,2.53652,3942.4,3941.7,2.95420737]
[1734468842752,2.53652,3942.4,3941.8,0.97555779]
[1734468842951,2.53652,3942.4,3941.7,0.66991322]
[1734468842952,2.53652,3942.4,3941.9,0.10306689]
[1734468843155,2.53652,3942.4,3942.0,0.10306689]
[1734468843361,2.53652,3942.4,3941.7,0.66991322]
[1734468843556,2.53652,3942.4,3941.8,1.14793894]
[1734468843873,2.53652,3942.4,3941.9,0.10303673]
[1734468844077,2.53652,3942.4,3942.0,0.10303673]
[1734468844376,2.53652,3942.4,3941.8,0.17265941]
[1734468844377,2.53652,3942.4,3942.1,0.10303673]
[1734468844542,2.53652,3942.4,3941.8,0.17265941]
[1734468844741,2.53652,3942.4,3941.9,0.97516463]
[1734468844976,2.53641,3942.6,3942.0,0.10302252]
[1734468845156,2.53641,3942.6,3942.1,0.10302252]
[1734468845473,2.53641,3942.6,3941.9,0.18992535]
[1734468845773,2.53641,3942.6,3942.0,0.10304009]
[1734468845980,0.88820588,3942.5,3942.1,0.10304009]
[1734468846299,0.88820588,3942.5,3941.9,0.18992535]
[1734468846495,0.88820588,3942.5,3942.0,0.87225829]
[1734468846671,0.88820588,3942.5,3942.1,0.1030367]
[1734468846882,0.88820588,3942.5,3941.9,0.18992535]
[1734468847050,3.42467588,3942.5,3942.0,0.10304308]
[1734468847255,3.42467588,3942.5,3942.1,0.10304308]
[1734468847551,3.42467588,3942.5,3941.9,0.18992535]
[1734468847756,3.42467588,3942.5,3942.0,0.10303103]
[1734468848001,3.42467588,3942.5,3942.1,0.10303103]
[1734468848184,0.7586,3942.4,3941.6,1.05668086]
[1734468848364,2.53673,3942.1,3941.7,0.97532997]
[1734468848572,2.53673,3942.1,3941.8,0.103021]
[1734468848883,2.53673,3942.1,3941.4,1.05668086]
[1734468849051,2.53673,3942.1,3941.5,2.74944748]
[1734468849260,2.53673,3942.1,3941.6,0.97558765]
[1734468849602,2.53673,3942.1,3941.7,0.103052]
[1734468849923,0.88820588,3942.2,3941.8,0.103052]
[1734468850117,2.5366,3942.3,3941.5,0.46505635]
[1734468850408,0.7586,3942.4,3941.6,1.12769167]
[1734468850601,3.29512,3942.4,3941.7,2.2841689]
[1734468850801,3.29512,3942.4,3941.8,0.10304027]
[1734468850959,3.29512,3942.4,3941.6,0.15217372]
[1734468851157,3.29512,3942.4,3941.7,2.2842248]
[1734468851407,3.29512,3942.4,3941.8,0.97548558]
[1734468851607,3.29512,3942.4,3941.9,0.10305752]
[1734468851766,2.53659,3942.3,3941.6,0.15217372]
[1734468851963,2.53659,3942.3,3941.7,0.10304374]
[1734468852186,2.53659,3942.3,3941.8,0.10304374]
[1734468852388,2.53659,3942.3,3941.9,0.10304374]
[1734468852562,2.53659,3942.3,3941.6,0.15217372]
[1734468852759,2.53659,3942.3,3941.7,0.97557374]
[1734468853008,2.53659,3942.3,3941.8,0.10305133]
[1734468853227,2.53659,3942.3,3941.9,0.10305133]
[1734468853503,2.53659,3942.3,3941.6,0.15217372]
[1734468853711,2.53659,3942.3,3941.7,0.97566002]
[1734468853914,2.53659,3942.3,3941.8,0.975566]
[1734468854096,0.7586,3942.4,3941.7,0.21845146]
[1734468854097,0.7586,3942.4,3941.9,0.10305589]
[1734468854300,2.53647,3942.5,3941.7,0.21845146]
[1734468854301,2.53647,3942.5,3942.0,0.10305589]
[1734468854508,2.53647,3942.5,3941.7,1.27513232]
[1734468854509,2.53647,3942.5,3941.7,0.21845146]
[1734468854667,2.53647,3942.5,3941.8,0.97557194]
[1734468854874,2.53647,3942.5,3941.9,1.2158201]
[1734468855135,2.53647,3942.5,3942.0,0.10304303]
[1734468855271,2.53647,3942.5,3941.9,0.2402878]
[1734468855620,2.53647,3942.5,3941.7,0.21845146]
[1734468855621,2.53652,3942.4,3941.7,0.21845146]
[1734468855916,2.53652,3942.4,3941.8,2.28441608]
[1734468856219,2.53652,3942.4,3941.9,0.97559866]
[1734468856508,2.53652,3942.4,3942.0,0.10305372]
[1734468856719,2.53652,3942.4,3941.7,0.21845146]
[1734468856887,2.53652,3942.4,3941.8,0.10306055]
[1734468857073,0.88820588,3942.6,3941.9,0.10306055]
[1734468857274,0.88820588,3942.6,3942.0,0.10306055]
[1734468857275,2.5366,3942.3,3942.0,0.10306055]
[1734468857527,2.5366,3942.3,3941.7,0.21845146]
[1734468857682,2.5366,3942.3,3941.8,2.42769113]
[1734468857868,2.5366,3942.3,3941.9,0.10306661]
[1734468858075,2.5366,3942.3,3941.8,0.1427306]
[1734468858407,2.5366,3942.3,3941.9,0.10309198]
[1734468858610,2.5366,3942.3,3942.0,0.10309198]
[1734468858920,2.5366,3942.3,3941.8,0.1427306]
[1734468859123,2.5366,3942.3,3941.9,0.1030873]
[1734468859332,2.5366,3942.3,3942.0,0.1030873]
[1734468859619,2.5366,3942.3,3941.6,1.20885458]
[1734468859787,2.5366,3942.3,3941.7,2.56494443]
[1734468859995,2.5366,3942.3,3941.8,2.28560109]
[1734468860185,1.95041716,3942.6,3941.9,0.10309588]
[1734468860371,1.95041716,3942.6,3941.7,0.27938759]
[1734468860621,1.95041716,3942.6,3941.8,2.28587163]
[1734468860774,1.95041716,3942.6,3941.9,0.9761416]
[1734468860775,0.88820588,3942.6,3941.9,0.9761416]
[1734468860975,0.88820588,3942.6,3942.0,0.10309891]
[1734468861175,0.88820588,3942.6,3942.1,0.10309891]
[1734468861405,0.7586,3942.5,3941.6,1.05668086]
[1734468861614,0.7586,3942.5,3941.7,2.28608102]
[1734468861797,0.7586,3942.5,3941.6,1.05668086]
[1734468861798,0.7586,3942.5,3941.8,2.28599531]
[1734468862122,0.7586,3942.5,3941.9,0.10309804]
[1734468862326,0.7586,3942.5,3942.0,0.10309804]
[1734468862508,0.7586,3942.5,3941.6,1.05668086]
[1734468862831,0.7586,3942.5,3941.7,2.2861451]
[1734468862832,2.5366,3942.3,3941.7,2.2861451]
[1734468862995,2.5366,3942.3,3941.8,2.18304556]
[1734468863200,3.29508,3942.5,3941.9,2.28612575]
[1734468863528,3.29508,3942.5,3941.0,1.05668086]
[1734468863529,2.5371,3941.6,3941.0,1.05668086]
[1734468863678,2.5371,3941.6,3940.9,1.05668086]
[1734468863679,2.53723,3941.3,3940.9,1.05668086]
[1734468863882,2.53736,3941.1,3941.0,0.10316891]
[1734468864106,0.7586,3941.0,3940.8,0.26360697]
[1734468864306,0.7586,3941.0,3940.9,0.10320727]
[1734468864529,0.7586,3941.0,3940.8,0.26360697]
[1734468866150,0.88820588,3940.9,3940.2,1.05668086]
[1734468866301,0.88820588,3940.9,3939.3,3.16885787]
[1734468866302,0.7586,3940.2,3939.4,1.05668086]
[1734468866501,3.42627588,3940.0,3939.5,0.97678725]
[1734468866740,3.42627588,3940.0,3939.4,0.26361837]
[1734468866901,0.88820588,3940.0,3939.5,0.9767868]
[1734468867244,0.88820588,3940.0,3939.4,0.26361837]
[1734468867439,1.06328805,3940.7,3938.7,1.05668086]
[1734468867440,0.7586,3939.6,3938.7,1.05668086]
[1734468867637,0.7586,3939.6,3938.5,10.88282129]
[1734468867638,0.7586,3939.6,3938.8,2.54948572]
[1734468867858,0.7586,3939.6,3938.9,0.10294929]
[1734468868022,0.7586,3939.6,3938.8,0.2636409]
[1734468868223,0.7586,3939.6,3938.9,0.10293808]
[1734468868419,6.54464328,3941.0,3938.8,1.15184678]
[1734468868420,0.7586,3940.0,3938.8,1.15184678]
[1734468868665,0.7586,3940.3,3939.1,0.88820588]
[1734468868825,0.7586,3940.8,3939.6,0.50765]
[1734468869268,0.7586,3940.8,3939.4,0.88820588]
[1734468869435,0.7586,3940.8,3939.9,0.50762]
[1734468869635,0.7586,3940.8,3939.4,1.39588588]
[1734468869636,0.7586,3940.8,3939.8,0.55]
[1734468869870,0.7586,3940.8,3939.7,0.88820588]
[1734468869871,4.66151375,3942.0,3940.1,0.55]
[1734468869872,0.88820588,3941.4,3940.1,0.55]
[1734468870026,3.29557,3941.7,3940.3,0.50756]
[1734468870364,2.53704,3941.6,3940.3,0.50756]
[1734468871821,0.7586,3941.7,3940.1,0.5076]
[1734468872121,3.32524,3941.6,3940.4,0.50755]
[1734468872619,3.32524,3941.6,3939.9,0.55]
[1734468872831,3.32524,3941.6,3940.5,0.50754]
[1734468875981,2.53714,3941.5,3940.2,0.50757]
[1734468876150,2.53714,3941.5,3940.3,0.50757]
[1734468879655,2.53714,3941.5,3939.9,0.55]
[1734468879883,2.53714,3941.5,3940.4,0.50755]
[1734468880302,0.7882,3941.6,3940.4,0.50755]
[1734468880501,0.7882,3941.6,3939.9,0.55]
[1734468880705,0.7882,3941.6,3939.7,3.0]
[1734468880706,0.7882,3941.6,3940.1,0.55]
[1734468880873,0.7882,3941.6,3940.3,0.55]
[1734468881074,0.7882,3941.6,3941.0,0.50747]
[1734468881461,0.7882,3941.6,3940.4,1.92728682]
[1734468881662,0.7882,3941.9,3941.1,0.50747]
[1734468882200,0.7882,3941.9,3940.7,0.55]
[1734468882407,0.7882,3941.9,3940.8,0.10266324]
[1734468882920,0.7882,3941.9,3940.9,0.10266324]
[1734468883205,0.7882,3941.9,3940.8,0.5075]
[1734468883391,0.7882,3941.9,3940.9,0.10267017]
[1734468883564,3.32505,3941.9,3940.8,0.5075]
[1734468883765,3.32505,3941.9,3940.9,0.10266994]
[1734468884093,3.32505,3941.9,3940.8,0.5075]
[1734468884766,3.32505,3941.9,3940.9,0.10264299]
[1734468885100,3.32505,3941.9,3940.8,0.5075]
[1734468885304,3.32505,3941.9,3940.9,0.10264366]
[1734468885469,3.32505,3941.9,3940.8,0.5075]
[1734468885663,3.32505,3941.9,3940.9,0.10265444]
[1734468885865,3.32505,3941.9,3940.8,0.5075]
[1734468886195,3.32505,3941.9,3940.9,0.10265441]
[1734468886368,3.32505,3941.9,3940.8,0.5075]
[1734468886568,3.32505,3941.9,3940.9,0.10266775]
[1734468886791,3.32505,3941.9,3940.8,0.5075]
[1734468886995,3.32505,3941.9,3940.9,0.10267163]
[1734468887305,3.32505,3941.9,3940.8,0.5075]
[1734468887612,3.32505,3941.9,3940.9,0.10268749]
[1734468888590,2.53692,3941.8,3940.9,0.10268749]
[1734468888786,2.53692,3941.8,3941.0,0.10268749]
[1734468889032,2.53692,3941.8,3940.8,0.10268749]
[1734468889324,2.53692,3941.8,3940.7,0.55]
[1734468889325,2.53692,3941.8,3940.9,0.10270649]
[1734468889527,2.53692,3941.8,3941.0,0.10270649]
[1734468889693,2.53692,3941.8,3940.7,1.05752]
[1734468889899,2.53692,3941.8,3940.8,0.10272558]
[1734468890112,2.53692,3941.8,3940.9,0.10272558]
[1734468890430,0.7882,3941.9,3941.0,0.10272558]
[1734468890578,0.7882,3941.9,3940.8,0.50751]
[1734468890784,3.32504,3941.9,3940.9,0.10274597]
[1734468891034,3.32504,3941.9,3941.0,0.10274135]
[1734468891182,3.32504,3941.9,3940.8,0.50751]
[1734468891379,3.32504,3941.9,3940.9,0.10274823]
[1734468891579,3.32504,3941.9,3941.0,0.10274823]
[1734468891777,3.32504,3941.9,3941.1,0.10274823]
[1734468892023,3.32504,3941.9,3940.8,0.50751]
[1734468892218,3.32504,3941.9,3940.9,0.2974174]
[1734468892382,3.32504,3941.9,3941.0,0.10274636]
[1734468892898,3.32504,3941.9,3940.8,0.50751]
[1734468893216,3.32504,3941.9,3940.9,0.10277308]
[1734468893410,3.32504,3941.9,3941.0,0.10281139]
[1734468893582,3.74646404,3941.9,3940.8,0.50751]
[1734468893782,3.74646404,3941.9,3940.9,0.10279832]
[1734468893981,0.88920036,3941.6,3941.0,0.10279832]
[1734468894209,0.42142404,3941.9,3940.6,0.55]
[1734468894210,0.7963,3941.5,3940.6,0.55]
[1734468894415,0.7963,3941.5,3940.7,0.10280419]
[1734468894621,0.7963,3941.5,3940.8,0.30775765]
[1734468894828,0.7963,3941.5,3940.9,0.10280419]
[1734468895001,0.7963,3941.5,3940.8,0.20495346]
[1734468895201,0.7963,3941.5,3940.9,0.10280375]
[1734468895428,0.7963,3941.5,3940.8,0.20495346]
[1734468895429,0.7963,3941.5,3941.0,0.10280375]
[1734468895604,0.7963,3941.5,3940.8,0.20495346]
[1734468896017,0.7963,3941.5,3940.9,0.10280319]
[1734468896207,0.7963,3941.5,3940.8,0.20495346]
[1734468896387,0.7963,3941.5,3940.9,0.10279237]
[1734468896726,0.7963,3941.5,3941.0,0.10279237]
[1734468896892,0.7963,3941.5,3941.1,0.10279237]
[1734468897094,0.7963,3941.5,3940.8,0.20495346]
[1734468897312,0.7963,3941.5,3940.9,0.10281818]
[1734468897515,0.7963,3941.5,3941.0,0.10281818]
[1734468897717,0.7963,3941.5,3941.1,0.10281818]
[1734468897893,0.7963,3941.5,3941.2,0.10281818]
[1734468898094,0.7963,3941.5,3940.7,0.50752]
[1734468898433,0.7963,3941.5,3940.8,0.10286349]
[1734468898596,0.7963,3941.5,3940.9,0.10286349]
[1734468898926,0.7963,3941.5,3940.7,0.80786012]
[1734468899231,0.7963,3941.5,3940.8,0.61047067]
[1734468899527,0.7963,3941.5,3940.8,0.5075]
[1734468899728,0.7963,3941.5,3940.9,0.23876025]
[1734468899932,0.7963,3942.1,3941.2,0.50745]
[1734468900142,0.7963,3942.1,3941.3,0.10297624]
[1734468900432,0.7963,3942.5,3941.9,0.88920036]
[1734468900608,1.06328805,3943.4,3942.4,0.88920036]
[1734468900609,0.7963,3943.4,3942.4,0.88920036]
[1734468900809,0.7963,3943.4,3942.5,0.63561794]
[1734468901023,0.7963,3943.4,3942.6,0.10297624]
[1734468901195,0.7963,3943.4,3941.8,1.58502129]
[1734468901196,2.53603,3943.2,3942.7,0.10297624]
[1734468901392,0.7963,3943.1,3942.8,0.10297624]
[1734468901594,0.7963,3943.1,3942.2,0.55]
[1734468901795,0.7963,3943.1,3942.3,0.10283455]
[1734468902031,0.7963,3943.1,3942.4,0.10283455]
[1734468902228,2.53628,3942.8,3942.5,0.10283455]
[1734468902532,2.53628,3942.8,3941.7,0.50738]
[1734468902727,2.53628,3942.8,3941.8,0.10280198]
[1734468902895,2.53628,3942.8,3941.9,0.10280198]
[1734468903095,0.7636,3942.5,3942.0,0.10280198]
[1734468903305,1.65280036,3942.3,3941.1,1.05668086]
[1734468903522,0.7636,3941.9,3941.2,0.1028243]
[1734468903711,0.7636,3941.9,3941.3,0.1028243]
[1734468903997,0.7636,3941.9,3940.7,0.30034012]
[1734468903998,2.53704,3941.6,3940.7,0.30034012]
[1734468904194,0.7636,3941.5,3940.8,0.10285903]
[1734468904397,0.7636,3941.5,3940.7,0.30034012]
[1734468904398,2.53725,3941.3,3940.7,0.30034012]
[1734468904597,0.7636,3941.3,3940.7,0.30034012]
[1734468904840,0.7636,3941.3,3940.0,1.67479162]
[1734468904841,0.7636,3941.3,3940.0,1.12571076]
[1734468904994,2.53732,3941.2,3940.1,0.97452544]
[1734468905196,2.53732,3941.2,3940.2,0.10288374]
[1734468905407,2.53732,3941.2,3940.3,0.10288374]
[1734468905604,0.7636,3941.3,3940.4,0.10288374]
[1734468905833,0.7636,3941.3,3940.5,0.10288374]
[1734468906040,0.7636,3941.3,3940.6,0.10288374]
[1734468906349,2.09211027,3942.4,3940.6,0.10288374]
[1734468906350,3.0,3942.8,3940.7,0.65288374]
[1734468906526,3.3001,3942.5,3941.0,0.55]
[1734468906729,0.7636,3942.5,3941.5,0.50742]
[1734468906914,0.7636,3942.5,3941.0,1.05747]
[1734468906915,1.06328805,3943.5,3941.8,0.55]
[1734468907245,0.7636,3943.0,3942.0,0.50735]
[1734468907403,0.7636,3943.0,3942.1,0.10288374]
[1734468907597,0.7636,3943.0,3942.0,0.50735]
[1734468907805,0.7636,3943.0,3942.2,0.10271093]
[1734468908110,0.7636,3943.0,3942.0,0.50735]
[1734468908315,0.7636,3943.0,3942.1,0.10273521]
[1734468908514,0.7636,3943.0,3942.2,0.10273521]
[1734468908711,0.7636,3943.0,3942.3,0.10273521]
[1734468908940,0.7636,3943.0,3942.0,0.50735]
[1734468909235,3.29975,3943.0,3942.1,0.1027431]
[1734468909442,3.29975,3943.0,3942.2,0.1027431]
[1734468909650,3.29975,3943.0,3942.0,0.29841802]
[1734468909651,3.29975,3943.0,3942.3,0.1027431]
[1734468909804,3.29975,3943.0,3942.0,0.29841802]
[1734468910005,3.29975,3943.0,3942.1,0.10272844]
[1734468910201,3.29975,3943.0,3942.2,0.10272844]
[1734468910202,2.53624,3942.9,3942.2,0.10272844]
[1734468910512,2.53628,3942.8,3941.6,0.55]
[1734468910723,2.53628,3942.8,3941.8,0.55]
[1734468910899,2.53628,3942.8,3941.9,0.10274627]
[1734468911102,2.53628,3942.8,3942.0,0.10274627]
[1734468911304,2.53628,3942.8,3942.1,0.10274627]
[1734468911540,0.7636,3943.0,3942.2,0.10274627]
[1734468911541,3.29978,3943.0,3942.2,0.10274627]
[1734468911833,3.629758,3943.0,3941.8,1.05738]
[1734468912142,2.5362,3942.9,3941.9,0.10272785]
[1734468912314,1.093578,3943.0,3942.0,0.10272785]
[1734468912641,2.53647,3942.5,3941.4,0.55]
[1734468912805,0.7636,3942.4,3941.5,0.1027322]
[1734468913009,0.7636,3942.4,3941.6,0.1027322]
[1734468913334,0.7636,3942.4,3941.7,0.1027322]
[1734468913535,0.7636,3942.4,3941.8,0.1027322]
[1734468913750,0.7636,3942.4,3941.9,0.1027322]
[1734468913915,3.3149,3942.9,3942.0,0.1027322]
[1734468914122,3.3149,3942.9,3941.8,0.1027322]
[1734468914428,3.3149,3942.9,3941.9,0.10275086]
[1734468914429,2.5363,3942.8,3941.9,0.10275086]
[1734468914624,2.5363,3942.8,3941.7,0.50738]
[1734468914925,0.7787,3942.9,3941.8,0.10278019]
[1734468914926,2.53636,3942.7,3941.8,0.10278019]
[1734468915126,2.53636,3942.7,3941.4,0.55]
[1734468915127,2.53636,3942.7,3941.9,0.10278019]
[1734468915338,2.53636,3942.7,3941.6,0.5074]
[1734468915539,2.53636,3942.7,3941.7,0.10277236]
[1734468916941,0.7787,3942.9,3941.8,0.10277236]
[1734468916942,2.53627,3942.8,3941.8,0.10277236]
[1734468917112,2.53627,3942.8,3941.9,0.10277236]
[1734468917309,2.53627,3942.8,3942.0,0.10277236]
[1734468917522,0.7787,3942.9,3941.8,0.50738]
[1734468917736,0.7787,3942.9,3941.9,0.10275217]
[1734468918042,3.3149,3942.9,3942.0,0.10275217]
[1734468918343,3.64639,3942.9,3941.8,0.50738]
[1734468918508,3.64639,3942.9,3941.9,0.10275498]
[1734468918707,1.11019,3942.9,3942.0,0.10275498]
[1734468918915,2.53635,3942.7,3942.1,0.10274203]
[1734468919117,2.53635,3942.7,3941.7,0.55]
[1734468919315,2.53655,3942.4,3941.8,0.10275193]
[1734468919510,0.7517,3942.3,3941.4,0.55]
[1734468919711,0.7517,3942.3,3941.5,0.10277444]
[1734468919918,1.080525,3942.3,3941.6,0.10277444]
[1734468920139,1.080525,3942.3,3941.0,1.05668086]
[1734468920140,0.7517,3942.3,3940.8,1.45728583]
[1734468920358,2.53672,3942.1,3941.0,0.50748]
[1734468920553,2.53672,3942.1,3941.1,0.9747515]
[1734468920714,2.53672,3942.1,3941.2,0.10281244]
[1734468920914,2.53672,3942.1,3941.3,0.10280478]
[1734468921132,3.28829,3942.3,3941.4,0.10280478]
[1734468921339,2.53669,3942.2,3941.5,0.10280478]
[1734468921673,0.7517,3942.6,3941.6,0.5074]
[1734468921877,0.7517,3942.6,3941.4,0.55]
[1734468921878,2.53647,3942.5,3941.7,0.10279907]
[1734468922169,2.53653,3942.4,3941.8,0.10277875]
[1734468922468,2.53653,3942.4,3941.3,0.55]
[1734468922666,2.53653,3942.4,3941.4,0.97456057]
[1734468922972,2.53653,3942.4,3941.5,0.10280102]
[1734468923155,2.53653,3942.4,3941.3,1.05744]
[1734468923156,2.53653,3942.4,3941.6,0.10280102]
[1734468923348,2.53653,3942.4,3941.7,0.10280102]
[1734468923548,2.53653,3942.4,3941.8,0.10280102]
[1734468923748,2.53653,3942.4,3941.3,1.05744]
[1734468923949,2.53653,3942.4,3941.4,1.18593294]
[1734468924158,2.53653,3942.4,3941.5,0.9743556]
[1734468924361,2.53653,3942.4,3941.5,0.10276475]
[1734468924567,2.53653,3942.4,3941.6,0.10276475]
[1734468924777,2.53653,3942.4,3941.7,0.10276475]
[1734468925072,2.53653,3942.4,3941.8,0.10276475]
[1734468925252,2.53653,3942.4,3941.4,0.21141209]
[1734468925455,2.53653,3942.4,3941.5,1.50669078]
[1734468925651,2.53653,3942.4,3941.6,0.10274843]
[1734468925970,2.5363,3942.8,3941.7,0.10274843]
[1734468926171,2.5363,3942.8,3941.8,0.10274843]
[1734468926385,2.5363,3942.8,3941.7,0.50739]
[1734468926386,2.5363,3942.8,3941.9,0.10274843]
[1734468926598,2.5363,3942.8,3941.7,0.50739]
[1734468926599,2.5363,3942.8,3942.0,0.10274843]
[1734468926740,2.5363,3942.8,3942.1,0.10274843]
[1734468926938,2.5363,3942.8,3942.2,0.10274843]
[1734468927241,2.5363,3942.8,3941.7,0.50739]
[1734468927489,2.5363,3942.8,3941.8,0.20966242]
[1734468927651,2.5363,3942.8,3941.9,0.10275699]
[1734468927990,2.5363,3942.8,3941.8,0.20966242]
[1734468927991,2.5363,3942.8,3942.0,0.10275699]
[1734468928286,2.5363,3942.8,3942.1,0.10275699]
[1734468928487,2.53636,3942.7,3942.2,0.10275699]
[1734468928668,2.53636,3942.7,3941.8,0.20966242]
[1734468928871,2.53636,3942.7,3941.9,0.10277365]
[1734468929042,3.28791,3942.9,3942.0,0.10277365]
[1734468929393,3.28791,3942.9,3941.8,0.71703242]
[1734468929394,3.28791,3942.9,3942.1,0.10277365]
[1734468929693,3.28791,3942.9,3942.2,0.10277365]
[1734468929893,3.28791,3942.9,3941.9,0.10277365]
[1734468930096,3.28791,3942.9,3942.0,0.10279705]
[1734468930280,3.28791,3942.9,3942.1,0.10279705]
[1734468930593,3.28791,3942.9,3941.9,0.55]
[1734468930594,3.31381,3942.9,3941.9,0.55]
[1734468930739,3.31381,3942.9,3942.2,0.10279798]
[1734468930945,3.31381,3942.9,3941.9,0.55]
[1734468931191,2.5363,3942.8,3942.0,0.10279279]
[1734468931400,2.5363,3942.8,3942.1,0.10279279]
[1734468931578,2.5363,3942.8,3941.9,0.55]
[1734468931898,2.5363,3942.8,3942.0,0.10281133]
[1734468932201,2.5363,3942.8,3942.1,0.10281133]
[1734468932402,2.5363,3942.8,3942.2,0.10281133]
[1734468932544,2.5363,3942.8,3941.9,0.55]
[1734468932744,2.5363,3942.8,3942.0,0.10281165]
[1734468932945,2.5363,3942.8,3942.1,0.10281165]
[1734468933206,2.5363,3942.8,3942.0,0.13698641]
[1734468933411,2.5363,3942.8,3942.1,0.10282024]
[1734468933565,2.5363,3942.8,3942.0,0.13698641]
[1734468933750,2.5363,3942.8,3942.1,0.10283045]
[1734468933942,2.5363,3942.8,3942.0,0.13698641]
[1734468934146,2.5363,3942.8,3942.1,0.10282963]
[1734468934346,2.5363,3942.8,3942.0,0.13698641]
[1734468934347,2.5363,3942.8,3942.2,0.10282963]
[1734468934562,2.5363,3942.8,3942.0,0.13698641]
[1734468934761,2.5363,3942.8,3942.1,0.10284496]
[1734468934997,2.5363,3942.8,3942.0,0.13698641]
[1734468934998,2.5363,3942.8,3942.2,0.10284496]
[1734468935146,2.5363,3942.8,3942.3,0.10284496]
[1734468935345,2.5363,3942.8,3942.0,0.13698641]
[1734468935545,2.5363,3942.8,3942.1,0.1029347]
[1734468935776,2.5363,3942.8,3942.2,0.1029347]
[1734468935991,2.5363,3942.8,3942.3,0.1029347]
[1734468936192,2.5363,3942.8,3942.0,0.13698641]
[1734468936359,2.5363,3942.8,3942.1,0.24337639]
[1734468936562,0.0259,3942.9,3942.2,0.10297351]
[1734468936895,2.56212,3942.9,3942.3,0.10297351]
[1734468937194,2.56212,3942.9,3941.9,0.55]
[1734468937195,2.56212,3942.9,3942.4,0.10297351]
[1734468937514,0.0259,3942.9,3941.9,0.55]
[1734468937644,0.0259,3942.9,3941.5,4.58502129]
[1734468937645,0.0259,3942.9,3942.0,1.64229165]
[1734468937847,0.0259,3942.9,3942.1,0.55]
[1734468938095,0.0259,3942.9,3942.2,0.10294602]
[1734468938253,0.0259,3942.9,3942.3,0.10294602]
[1734468938447,0.0259,3942.9,3942.4,0.10294602]
[1734468938694,0.0259,3942.9,3942.5,1.52398835]
[1734468938883,0.0259,3942.9,3942.6,0.25534486]
[1734468939060,0.0259,3942.9,3942.7,0.10294602]
[1734468939261,0.0259,3942.9,3942.8,0.10294602]
[1734468940724,0.0259,3942.9,3942.8,0.10287395]
[1734468943576,0.0259,3942.9,3942.3,0.55]
[1734468944087,0.0259,3942.9,3942.5,0.55]
[1734468944290,0.0259,3942.9,3942.6,0.10285339]
[1734468944486,0.0259,3942.9,3942.7,0.10285339]
[1734468944690,0.0259,3942.9,3942.5,0.55]
[1734468944936,0.0259,3942.9,3942.6,0.10283849]
[1734468945073,2.46191,3943.2,3942.7,0.10283849]
[1734468945384,2.46191,3943.2,3942.5,0.55]
[1734468945587,2.53639,3942.7,3942.0,0.16066809]
[1734468945821,1.92683023,3942.9,3942.1,0.10285564]
[1734468946121,2.53665,3942.2,3941.4,1.32046565]
[1734468946292,2.53665,3942.2,3941.5,2.28366771]
[1734468946494,2.53665,3942.2,3941.6,1.33561427]
[1734468946706,0.7579,3942.8,3941.7,0.10288974]
[1734468946910,0.7579,3942.8,3941.8,0.10288974]
[1734468947120,3.2946,3942.2,3941.4,0.26378479]
[1734468947320,2.53672,3942.1,3941.5,0.10289146]
[1734468947480,2.5368,3942.0,3941.6,0.10289146]
[1734468947808,2.5368,3942.0,3941.5,0.14233571]
[1734468947809,2.53683,3942.0,3941.7,0.10289146]
[1734468947987,2.53683,3942.0,3941.4,0.26378479]
[1734468948189,2.53683,3942.0,3941.5,0.10289239]
[1734468948408,2.53683,3942.0,3941.6,0.10289239]
[1734468948610,2.53683,3942.0,3941.4,0.26378479]
[1734468948819,2.53683,3942.0,3941.5,0.10287474]
[1734468948977,2.53683,3942.0,3941.6,0.10287474]
[1734468949176,2.53683,3942.0,3941.7,0.10287474]
[1734468949484,0.7579,3942.2,3941.4,0.26378479]
[1734468949485,2.53687,3941.9,3941.4,0.26378479]
[1734468949672,2.53687,3941.9,3941.5,0.10285385]
[1734468949871,2.53687,3941.9,3941.6,0.10285385]